[Event "*** Titled Tuesday Blitz"]
[Site "Chess.com"]
[Date "2018.05.01"]
[Round "3"]
[White "Zenzo"]
[Black "Last7Samurai"]
[Result "1-0"]
[WhiteElo "2393"]
[BlackElo "2640"]
[TimeControl "180+2"]
[EndTime "13:39:53 PDT"]
[Termination "Zenzo won by resignation"]

1. e4 {[%clk 0:03:01.9]} 1... e6 {[%clk 0:02:59.5]} 2. d4 {[%clk 0:03:02.4]}
2... d5 {[%clk 0:03:00.3]} 3. exd5 {[%clk 0:03:03.4]} 3... exd5 {[%clk
0:03:01.1]} 4. Bd3 {[%clk 0:03:04.6]} 4... Nc6 {[%clk 0:03:01.8]} 5. c3 {[%clk
0:03:05.5]} 5... Bd6 {[%clk 0:03:02.9]} 6. Qf3 {[%clk 0:03:06.5]} 6... Nf6
{[%clk 0:03:01.7]} 7. h3 {[%clk 0:03:07.7]} 7... Be6 {[%clk 0:02:59.6]} 8. Ne2
{[%clk 0:03:08.6]} 8... Qd7 {[%clk 0:03:00]} 9. Bf4 {[%clk 0:03:09.1]} 9...
O-O-O {[%clk 0:03:00.7]} 10. Nd2 {[%clk 0:03:09.5]} 10... Rhe8 {[%clk
0:03:00.5]} 11. O-O {[%clk 0:03:06.7]} 11... h5 {[%clk 0:02:55]} 12. Rfe1 {[%clk
0:03:04]} 12... Kb8 {[%clk 0:02:49]} 13. b4 {[%clk 0:03:03.4]} 13... Ne7 {[%clk
0:02:47.7]} 14. Nb3 {[%clk 0:03:01.4]} 14... Bf5 {[%clk 0:02:44.2]} 15. Nc5
{[%clk 0:02:58.1]} 15... Bxc5 {[%clk 0:02:42.7]} 16. bxc5 {[%clk 0:02:58.5]}
16... Bxd3 {[%clk 0:02:43.2]} 17. Qxd3 {[%clk 0:02:58.9]} 17... Ng6 {[%clk
0:02:25.6]} 18. Bh2 {[%clk 0:02:53.7]} 18... Re6 {[%clk 0:02:19.7]} 19. Nf4
{[%clk 0:02:27.5]} 19... Nxf4 {[%clk 0:02:17.2]} 20. Bxf4 {[%clk 0:02:29.4]}
20... Rde8 {[%clk 0:02:18]} 21. Rxe6 {[%clk 0:02:26.2]} 21... Qxe6 {[%clk
0:02:19.9]} 22. Rb1 {[%clk 0:02:22]} 22... Qc6 {[%clk 0:01:51.2]} 23. f3 {[%clk
0:02:06.9]} 23... Nd7 {[%clk 0:01:42.5]} 24. Rb2 {[%clk 0:01:56.9]} 24... g6
{[%clk 0:01:39.7]} 25. Kf2 {[%clk 0:01:56.6]} 25... Nf8 {[%clk 0:01:33.8]} 26.
c4 {[%clk 0:01:52.6]} 26... Ne6 {[%clk 0:01:28]} 27. Be3 {[%clk 0:01:46]} 27...
f5 {[%clk 0:01:19.8]} 28. f4 {[%clk 0:01:36.7]} 28... Ka8 {[%clk 0:01:05.2]} 29.
cxd5 {[%clk 0:01:19.9]} 29... Qxd5 {[%clk 0:01:07.1]} 30. Qb5 {[%clk 0:01:15.3]}
30... Rd8 {[%clk 0:01:07.4]} 31. c6 {[%clk 0:01:05.9]} 31... Qxb5 {[%clk
0:01:03.1]} 32. Rxb5 {[%clk 0:01:07.8]} 32... bxc6 {[%clk 0:01:04.3]} 33. Re5
{[%clk 0:00:58.4]} 33... Nxd4 {[%clk 0:01:04.1]} 34. Re7 {[%clk 0:00:58.3]}
34... Kb7 {[%clk 0:01:00.5]} 35. Rg7 {[%clk 0:00:55]} 35... Rd6 {[%clk
0:01:01.1]} 36. a4 {[%clk 0:00:32.8]} 36... Nc2 {[%clk 0:01:00.6]} 37. Bc5
{[%clk 0:00:32]} 37... Rd5 {[%clk 0:01:01]} 38. Bf8 {[%clk 0:00:29.1]} 38...
Rd2+ {[%clk 0:01:01.3]} 39. Kf3 {[%clk 0:00:25.9]} 39... Ne1+ {[%clk 0:00:59.8]}
40. Ke3 {[%clk 0:00:22.4]} 40... Rxg2 {[%clk 0:00:56.8]} 41. Bd6 {[%clk
0:00:23.5]} 41... Ra2 {[%clk 0:00:49.5]} 42. Bxc7 {[%clk 0:00:21]} 42... Ng2+
{[%clk 0:00:44.1]} 43. Kd4 {[%clk 0:00:19.6]} 43... Rxa4+ {[%clk 0:00:43.7]} 44.
Kc5 {[%clk 0:00:20.4]} 44... Ka6 {[%clk 0:00:40.2]} 45. Bb8 {[%clk 0:00:19.4]}
45... Ra5+ {[%clk 0:00:24.2]} 46. Kxc6 {[%clk 0:00:20.7]} 1-0

[Event "*** Titled Tuesday Blitz"]
[Site "Chess.com"]
[Date "2018.05.01"]
[Round "3"]
[White "windking123"]
[Black "Kimster98"]
[Result "0-1"]
[WhiteElo "2297"]
[BlackElo "2517"]
[TimeControl "180+2"]
[EndTime "13:39:55 PDT"]
[Termination "Kimster98 won by resignation"]

1. d4 {[%clk 0:03:01.9]} 1... Nf6 {[%clk 0:03:00.7]} 2. c4 {[%clk 0:03:01.4]}
2... Nc6 {[%clk 0:02:55]} 3. d5 {[%clk 0:02:54.3]} 3... Ne5 {[%clk 0:02:55.4]}
4. Qd4 {[%clk 0:02:47.7]} 4... Ng6 {[%clk 0:02:53.1]} 5. e4 {[%clk 0:02:43]}
5... d6 {[%clk 0:02:53.6]} 6. f4 {[%clk 0:02:39.6]} 6... e5 {[%clk 0:02:54]} 7.
dxe6 {[%clk 0:02:38.9]} 7... fxe6 {[%clk 0:02:55]} 8. Nc3 {[%clk 0:02:27]} 8...
e5 {[%clk 0:02:53.8]} 9. fxe5 {[%clk 0:02:26.9]} 9... dxe5 {[%clk 0:02:55]} 10.
Qxd8+ {[%clk 0:02:27.8]} 10... Kxd8 {[%clk 0:02:56.9]} 11. Bg5 {[%clk
0:02:22.7]} 11... c6 {[%clk 0:02:57.4]} 12. Bd3 {[%clk 0:02:07.5]} 12... Be7
{[%clk 0:02:54.7]} 13. Nf3 {[%clk 0:01:58.8]} 13... Kc7 {[%clk 0:02:44.9]} 14.
O-O {[%clk 0:01:50]} 14... Bc5+ {[%clk 0:02:39.2]} 15. Kh1 {[%clk 0:01:50.2]}
15... Ng4 {[%clk 0:02:40.1]} 16. Nd1 {[%clk 0:01:33]} 16... h6 {[%clk
0:02:38.6]} 17. Bh4 {[%clk 0:01:07.8]} 17... Nf4 {[%clk 0:02:26.2]} 18. Bc2
{[%clk 0:00:37.4]} 18... g5 {[%clk 0:02:15.1]} 19. Be1 {[%clk 0:00:23.5]} 19...
Re8 {[%clk 0:02:03.7]} 20. h3 {[%clk 0:00:22.1]} 20... Nf6 {[%clk 0:01:56.7]}
21. Bc3 {[%clk 0:00:21.2]} 21... Nd7 {[%clk 0:01:56.4]} 22. b4 {[%clk
0:00:18.2]} 22... Bf8 {[%clk 0:01:57.9]} 23. Ne3 {[%clk 0:00:18.5]} 23... a5
{[%clk 0:01:57.6]} 24. a3 {[%clk 0:00:19.3]} 24... b6 {[%clk 0:01:54.4]} 25. Ng4
{[%clk 0:00:20.1]} 25... Bg7 {[%clk 0:01:52.2]} 26. Rfd1 {[%clk 0:00:18.7]}
26... axb4 {[%clk 0:01:40]} 27. axb4 {[%clk 0:00:20.1]} 27... Bb7 {[%clk
0:01:41.5]} 28. Ne3 {[%clk 0:00:20.9]} 28... Ng6 {[%clk 0:01:35.3]} 29. Nf5
{[%clk 0:00:22.7]} 29... Bf8 {[%clk 0:01:36.5]} 30. Kg1 {[%clk 0:00:20.5]} 30...
Rxa1 {[%clk 0:01:35.8]} 31. Rxa1 {[%clk 0:00:22.4]} 31... Ra8 {[%clk 0:01:37.6]}
32. Rxa8 {[%clk 0:00:23.7]} 32... Bxa8 {[%clk 0:01:39.5]} 33. Kf2 {[%clk
0:00:25.4]} 33... Bb7 {[%clk 0:01:35.4]} 34. Nh2 {[%clk 0:00:26.8]} 34... h5
{[%clk 0:01:35.9]} 35. Nf3 {[%clk 0:00:27.6]} 35... g4 {[%clk 0:01:32.1]} 36.
hxg4 {[%clk 0:00:29.5]} 36... hxg4 {[%clk 0:01:34]} 37. Nh2 {[%clk 0:00:31.4]}
37... Nf6 {[%clk 0:01:35.4]} 38. Kg3 {[%clk 0:00:31.7]} 38... c5 {[%clk
0:01:35.9]} 39. b5 {[%clk 0:00:32.5]} 39... Bxe4 {[%clk 0:01:35.6]} 40. Nxg4
{[%clk 0:00:33.1]} 40... Bxc2 {[%clk 0:01:34.9]} 41. Nxf6 {[%clk 0:00:34.3]}
41... Bxf5 {[%clk 0:01:36.1]} 42. Nd5+ {[%clk 0:00:35.8]} 42... Kb7 {[%clk
0:01:37.5]} 43. Kf3 {[%clk 0:00:37.2]} 43... e4+ {[%clk 0:01:38.1]} 44. Ke3
{[%clk 0:00:38.3]} 44... Bh6+ {[%clk 0:01:39.3]} 45. Ke2 {[%clk 0:00:40]} 45...
Bg4+ {[%clk 0:01:40.7]} 46. Kf2 {[%clk 0:00:40.7]} 46... Nf4 {[%clk 0:01:40.7]}
47. Bd2 {[%clk 0:00:37.2]} 47... Nd3+ {[%clk 0:01:38.2]} 48. Kg3 {[%clk
0:00:36.9]} 48... Bxd2 {[%clk 0:01:35.7]} 49. Kxg4 {[%clk 0:00:38.6]} 49... Ne5+
{[%clk 0:01:37.6]} 50. Kf5 {[%clk 0:00:39.8]} 50... Nxc4 {[%clk 0:01:36.5]} 51.
Kxe4 {[%clk 0:00:41.2]} 51... Nd6+ {[%clk 0:01:38.1]} 52. Ke5 {[%clk 0:00:41.4]}
52... Nxb5 {[%clk 0:01:38.3]} 53. g4 {[%clk 0:00:43.3]} 53... Nc7 {[%clk
0:01:37.8]} 54. Ne7 {[%clk 0:00:42.4]} 54... c4 {[%clk 0:01:38.6]} 55. Kd4
{[%clk 0:00:43.9]} 55... b5 {[%clk 0:01:38]} 56. Nf5 {[%clk 0:00:44]} 56... Kb6
{[%clk 0:01:34.5]} 57. Nd6 {[%clk 0:00:38.9]} 57... Kc6 {[%clk 0:01:31.5]} 58.
Ne4 {[%clk 0:00:40.2]} 58... Bf4 {[%clk 0:01:32.1]} 59. g5 {[%clk 0:00:41]}
59... Ne6+ {[%clk 0:01:31.1]} 60. Kc3 {[%clk 0:00:42.4]} 60... Nxg5 {[%clk
0:01:31.7]} 0-1

[Event "*** Titled Tuesday Blitz"]
[Site "Chess.com"]
[Date "2018.05.01"]
[Round "3"]
[White "Rock700chess"]
[Black "Manukyan_Artak"]
[Result "0-1"]
[WhiteElo "2351"]
[BlackElo "2368"]
[TimeControl "180+2"]
[EndTime "13:39:58 PDT"]
[Termination "Manukyan_Artak won by resignation"]

1. d4 {[%clk 0:03:01.9]} 1... e6 {[%clk 0:02:59.4]} 2. c4 {[%clk 0:03:02.8]}
2... Nf6 {[%clk 0:02:59.7]} 3. Nc3 {[%clk 0:03:03.5]} 3... Bb4 {[%clk
0:03:00.2]} 4. f3 {[%clk 0:03:03.5]} 4... d5 {[%clk 0:03:00.4]} 5. a3 {[%clk
0:03:03.6]} 5... Bxc3+ {[%clk 0:02:55.5]} 6. bxc3 {[%clk 0:03:05.5]} 6... c5
{[%clk 0:02:55.7]} 7. cxd5 {[%clk 0:03:06.4]} 7... exd5 {[%clk 0:02:56.8]} 8. e3
{[%clk 0:03:04.6]} 8... Nc6 {[%clk 0:02:52.9]} 9. Bd3 {[%clk 0:03:05]} 9... O-O
{[%clk 0:02:46]} 10. Ne2 {[%clk 0:03:04.2]} 10... Re8 {[%clk 0:02:43.4]} 11. O-O
{[%clk 0:03:04.5]} 11... b6 {[%clk 0:02:26.3]} 12. Ng3 {[%clk 0:03:02.8]} 12...
a5 {[%clk 0:02:24.2]} 13. Ra2 {[%clk 0:02:56.3]} 13... Ba6 {[%clk 0:02:21.9]}
14. Re2 {[%clk 0:02:43.8]} 14... Bxd3 {[%clk 0:02:19.2]} 15. Qxd3 {[%clk
0:02:45.7]} 15... c4 {[%clk 0:01:57.5]} 16. Qc2 {[%clk 0:02:35.8]} 16... b5
{[%clk 0:01:55.2]} 17. e4 {[%clk 0:02:33.5]} 17... Qb6 {[%clk 0:01:52.2]} 18.
Kh1 {[%clk 0:02:24.6]} 18... b4 {[%clk 0:01:51.8]} 19. e5 {[%clk 0:02:15.3]}
19... Nd7 {[%clk 0:01:48.9]} 20. Nf5 {[%clk 0:02:03.4]} 20... Nf8 {[%clk
0:01:36.7]} 21. Nd6 {[%clk 0:01:48.2]} 21... Re7 {[%clk 0:01:18.6]} 22. Bg5
{[%clk 0:01:45]} 22... Rea7 {[%clk 0:01:19]} 23. Rb1 {[%clk 0:01:19.3]} 23...
Qa6 {[%clk 0:01:00.7]} 24. Qc1 {[%clk 0:01:02.9]} 24... Ne6 {[%clk 0:00:51]} 25.
Be3 {[%clk 0:00:53.9]} 25... bxc3 {[%clk 0:00:36.3]} 26. Qxc3 {[%clk 0:00:53.5]}
26... Rb8 {[%clk 0:00:35.3]} 27. Reb2 {[%clk 0:00:49.9]} 27... Rxb2 {[%clk
0:00:34.9]} 28. Rxb2 {[%clk 0:00:48.5]} 28... Ra8 {[%clk 0:00:30.6]} 29. Rb7
{[%clk 0:00:46]} 29... Ned8 {[%clk 0:00:21.5]} 30. Rd7 {[%clk 0:00:30.3]} 30...
Rb8 {[%clk 0:00:21.8]} 31. h3 {[%clk 0:00:28.6]} 31... Rb3 {[%clk 0:00:19.9]}
32. Qc1 {[%clk 0:00:27.3]} 32... c3 {[%clk 0:00:20.5]} 33. Bg5 {[%clk
0:00:27.7]} 33... Ne6 {[%clk 0:00:20]} 34. Rxf7 {[%clk 0:00:26]} 34... c2 {[%clk
0:00:20.7]} 35. Bd2 {[%clk 0:00:24.9]} 35... Rb1 {[%clk 0:00:21.6]} 36. Kh2
{[%clk 0:00:22.9]} 36... Rxc1 {[%clk 0:00:22]} 37. Bxc1 {[%clk 0:00:24.8]} 37...
Ncxd4 {[%clk 0:00:20]} 38. Re7 {[%clk 0:00:22.6]} 38... h6 {[%clk 0:00:20.5]}
39. f4 {[%clk 0:00:11.3]} 39... Qf1 {[%clk 0:00:21.2]} 0-1

[Event "*** Titled Tuesday Blitz"]
[Site "Chess.com"]
[Date "2018.05.01"]
[Round "3"]
[White "abubakrtagelsir"]
[Black "VeraNebolsina"]
[Result "1-0"]
[WhiteElo "2339"]
[BlackElo "2388"]
[TimeControl "180+2"]
[EndTime "13:40:10 PDT"]
[Termination "abubakrtagelsir won by resignation"]

1. e4 {[%clk 0:02:51.2]} 1... e5 {[%clk 0:02:56.2]} 2. Nf3 {[%clk 0:02:51.7]}
2... Nf6 {[%clk 0:02:56.8]} 3. Nxe5 {[%clk 0:02:51.5]} 3... d6 {[%clk
0:02:57.6]} 4. Nf3 {[%clk 0:02:51.6]} 4... Nxe4 {[%clk 0:02:58.5]} 5. d4 {[%clk
0:02:52.5]} 5... d5 {[%clk 0:02:56.6]} 6. Bd3 {[%clk 0:02:51.3]} 6... Be7 {[%clk
0:02:57.2]} 7. O-O {[%clk 0:02:51.2]} 7... Nd6 {[%clk 0:02:58.2]} 8. Bf4 {[%clk
0:02:45.3]} 8... O-O {[%clk 0:02:56.8]} 9. Nc3 {[%clk 0:02:45.1]} 9... c6 {[%clk
0:02:55.2]} 10. Ne2 {[%clk 0:02:45.7]} 10... Bg4 {[%clk 0:02:41.8]} 11. Ng3
{[%clk 0:02:40.5]} 11... Nd7 {[%clk 0:02:28.7]} 12. h3 {[%clk 0:02:35.1]} 12...
Be6 {[%clk 0:02:28]} 13. c3 {[%clk 0:02:34]} 13... Nf6 {[%clk 0:02:23.3]} 14.
Qc2 {[%clk 0:02:32.5]} 14... h6 {[%clk 0:01:52.5]} 15. Rfe1 {[%clk 0:02:27.4]}
15... Re8 {[%clk 0:01:50.8]} 16. Rad1 {[%clk 0:02:18.2]} 16... Bf8 {[%clk
0:01:51.6]} 17. Ne5 {[%clk 0:02:13.9]} 17... Nfe4 {[%clk 0:01:00]} 18. Nxe4
{[%clk 0:02:03.7]} 18... dxe4 {[%clk 0:00:59.4]} 19. Bxe4 {[%clk 0:01:33.4]}
19... Nxe4 {[%clk 0:00:58.6]} 20. Qxe4 {[%clk 0:01:11.2]} 20... Bd5 {[%clk
0:00:35.5]} 21. Qc2 {[%clk 0:01:08]} 21... Qf6 {[%clk 0:00:35.2]} 22. Bg3 {[%clk
0:01:06.2]} 22... b5 {[%clk 0:00:26.4]} 23. Re3 {[%clk 0:00:51.4]} 23... h5
{[%clk 0:00:26.5]} 24. h4 {[%clk 0:00:45.8]} 24... g6 {[%clk 0:00:26.9]} 25.
Rde1 {[%clk 0:00:45.5]} 25... Bh6 {[%clk 0:00:27.5]} 26. Nd7 {[%clk 0:00:34.7]}
26... Rxe3 {[%clk 0:00:20.1]} 27. Nxf6+ {[%clk 0:00:33.9]} 27... Kg7 {[%clk
0:00:21.1]} 28. fxe3 {[%clk 0:00:24.5]} 28... Kxf6 {[%clk 0:00:21.5]} 29. e4
{[%clk 0:00:24.9]} 29... Be6 {[%clk 0:00:19.7]} 30. Be5+ {[%clk 0:00:25.4]}
30... Ke7 {[%clk 0:00:20.5]} 31. d5 {[%clk 0:00:25.9]} 31... Bd7 {[%clk
0:00:19.1]} 32. dxc6 {[%clk 0:00:02.3]} 32... Bxc6 {[%clk 0:00:19.6]} 33. Bg3
{[%clk 0:00:04.2]} 33... Rd8 {[%clk 0:00:19.3]} 34. Qe2 {[%clk 0:00:03.9]} 34...
Rd2 {[%clk 0:00:14.9]} 35. Qxd2 {[%clk 0:00:04.8]} 35... Bxd2 {[%clk 0:00:15.4]}
36. Re2 {[%clk 0:00:06.7]} 36... Bc1 {[%clk 0:00:15.2]} 37. Bf2 {[%clk
0:00:08.6]} 37... Ke6 {[%clk 0:00:15.1]} 38. Bxa7 {[%clk 0:00:09.5]} 38... Bb7
{[%clk 0:00:12.6]} 39. Be3 {[%clk 0:00:11.4]} 39... Ba6 {[%clk 0:00:13.5]} 40.
Bxc1 {[%clk 0:00:11.9]} 1-0

[Event "*** Titled Tuesday Blitz"]
[Site "Chess.com"]
[Date "2018.05.01"]
[Round "3"]
[White "MFBerna"]
[Black "MasterLeif"]
[Result "1-0"]
[WhiteElo "2292"]
[BlackElo "2415"]
[TimeControl "180+2"]
[EndTime "13:40:13 PDT"]
[Termination "MFBerna won by resignation"]

1. e4 {[%clk 0:03:00]} 1... e5 {[%clk 0:02:52.6]} 2. Nf3 {[%clk 0:02:58.7]} 2...
Nc6 {[%clk 0:02:54.1]} 3. Bb5 {[%clk 0:02:58.7]} 3... Nd4 {[%clk 0:02:55.6]} 4.
Bc4 {[%clk 0:02:59]} 4... Bc5 {[%clk 0:02:56]} 5. c3 {[%clk 0:02:59.7]} 5...
Nxf3+ {[%clk 0:02:57.6]} 6. Qxf3 {[%clk 0:03:01.6]} 6... Qf6 {[%clk 0:02:59.3]}
7. Qe2 {[%clk 0:02:59.2]} 7... d6 {[%clk 0:02:56.9]} 8. a4 {[%clk 0:02:59.3]}
8... a5 {[%clk 0:02:54.3]} 9. d3 {[%clk 0:02:56.2]} 9... Be6 {[%clk 0:02:54.2]}
10. Na3 {[%clk 0:02:52.4]} 10... Ne7 {[%clk 0:02:46.2]} 11. Be3 {[%clk
0:02:47.7]} 11... Qg6 {[%clk 0:02:20.1]} 12. O-O {[%clk 0:02:38.5]} 12... Bxa3
{[%clk 0:02:21.5]} 13. Bxe6 {[%clk 0:02:31.4]} 13... fxe6 {[%clk 0:02:19.2]} 14.
Rxa3 {[%clk 0:02:31.9]} 14... O-O {[%clk 0:02:19.9]} 15. Raa1 {[%clk 0:02:31.3]}
15... Rf7 {[%clk 0:02:08.9]} 16. f4 {[%clk 0:02:31.9]} 16... exf4 {[%clk
0:02:09.1]} 17. Bxf4 {[%clk 0:02:31.6]} 17... Raf8 {[%clk 0:02:09.2]} 18. Bg3
{[%clk 0:02:25.8]} 18... e5 {[%clk 0:01:56.2]} 19. Rxf7 {[%clk 0:02:25.5]} 19...
Qxf7 {[%clk 0:01:58.1]} 20. d4 {[%clk 0:02:20.6]} 20... Ng6 {[%clk 0:01:55.5]}
21. Rf1 {[%clk 0:02:06]} 21... Qxf1+ {[%clk 0:01:40.7]} 22. Qxf1 {[%clk
0:02:07.9]} 22... Rxf1+ {[%clk 0:01:41.3]} 23. Kxf1 {[%clk 0:02:09.8]} 23... Kf7
{[%clk 0:01:26]} 24. Ke2 {[%clk 0:02:10.1]} 24... Ke6 {[%clk 0:01:21.7]} 25. Kd3
{[%clk 0:02:07.5]} 25... d5 {[%clk 0:00:46.8]} 26. b4 {[%clk 0:01:55]} 26...
axb4 {[%clk 0:00:40.2]} 27. cxb4 {[%clk 0:01:56.9]} 27... c6 {[%clk 0:00:25.2]}
28. dxe5 {[%clk 0:01:45.7]} 28... Nxe5+ {[%clk 0:00:26.5]} 29. Kd4 {[%clk
0:01:44.8]} 29... Nd7 {[%clk 0:00:20.6]} 30. exd5+ {[%clk 0:01:45.7]} 30... cxd5
{[%clk 0:00:22.5]} 31. a5 {[%clk 0:01:41.5]} 31... g6 {[%clk 0:00:23.1]} 32. b5
{[%clk 0:01:42]} 32... h5 {[%clk 0:00:23.8]} 33. a6 {[%clk 0:01:35.9]} 33...
bxa6 {[%clk 0:00:25.7]} 34. bxa6 {[%clk 0:01:37.8]} 34... Nb6 {[%clk 0:00:16.8]}
35. Bc7 {[%clk 0:01:37.4]} 35... Na8 {[%clk 0:00:02.9]} 36. Ba5 {[%clk
0:01:37.9]} 36... Kd6 {[%clk 0:00:04.8]} 37. Ke3 {[%clk 0:01:33]} 37... Kc5
{[%clk 0:00:05.6]} 38. a7 {[%clk 0:01:30.9]} 38... Kc4 {[%clk 0:00:05.1]} 39.
Kf4 {[%clk 0:01:29.9]} 39... d4 {[%clk 0:00:05.6]} 40. Kg5 {[%clk 0:01:30.9]}
40... d3 {[%clk 0:00:05.8]} 41. Kxg6 {[%clk 0:01:31.1]} 41... Kb5 {[%clk
0:00:06.7]} 42. Bd2 {[%clk 0:01:30.7]} 42... Ka6 {[%clk 0:00:08.1]} 43. Be3
{[%clk 0:01:29.6]} 43... Kb7 {[%clk 0:00:06.9]} 44. Kxh5 {[%clk 0:01:29.7]}
44... Nb6 {[%clk 0:00:08.6]} 45. g4 {[%clk 0:01:27.4]} 45... Nc4 {[%clk
0:00:06.2]} 46. Bf4 {[%clk 0:01:25.4]} 46... d2 {[%clk 0:00:06.8]} 47. Bxd2
{[%clk 0:01:26.2]} 47... Nxd2 {[%clk 0:00:08.5]} 48. g5 {[%clk 0:01:25.3]} 48...
Ne4 {[%clk 0:00:06.9]} 49. g6 {[%clk 0:01:25.5]} 49... Kxa7 {[%clk 0:00:08.4]}
50. Kh6 {[%clk 0:01:25.8]} 50... Kb7 {[%clk 0:00:09.8]} 51. g7 {[%clk 0:01:27]}
51... Nf6 {[%clk 0:00:10.6]} 52. Kg6 {[%clk 0:01:28.3]} 52... Ng8 {[%clk
0:00:11.9]} 53. h4 {[%clk 0:01:26.6]} 53... Kc6 {[%clk 0:00:12.5]} 54. h5 {[%clk
0:01:28.1]} 54... Kd6 {[%clk 0:00:13.8]} 55. h6 {[%clk 0:01:29.5]} 55... Ne7+
{[%clk 0:00:12.6]} 56. Kf7 {[%clk 0:01:30.3]} 56... Nf5 {[%clk 0:00:12.9]} 57.
h7 {[%clk 0:01:30.5]} 57... Nh6+ {[%clk 0:00:12.3]} 58. Kg6 {[%clk 0:01:31.2]}
58... Ng4 {[%clk 0:00:13.9]} 59. g8=Q {[%clk 0:01:29.6]} 59... Ne5+ {[%clk
0:00:15.8]} 1-0

[Event "*** Titled Tuesday Blitz"]
[Site "Chess.com"]
[Date "2018.05.01"]
[Round "3"]
[White "Kouzari"]
[Black "MartinZumsande"]
[Result "0-1"]
[WhiteElo "2633"]
[BlackElo "2503"]
[TimeControl "180+2"]
[EndTime "13:40:15 PDT"]
[Termination "MartinZumsande won by resignation"]

1. d4 {[%clk 0:03:01.9]} 1... d5 {[%clk 0:03:00.1]} 2. c4 {[%clk 0:03:03.2]}
2... e6 {[%clk 0:03:00.9]} 3. Nc3 {[%clk 0:03:04.3]} 3... Be7 {[%clk 0:03:02]}
4. cxd5 {[%clk 0:03:05.3]} 4... exd5 {[%clk 0:03:03]} 5. Bf4 {[%clk 0:03:06.8]}
5... Nf6 {[%clk 0:03:04.2]} 6. e3 {[%clk 0:03:04.8]} 6... Bf5 {[%clk 0:03:05.1]}
7. Qb3 {[%clk 0:02:53.2]} 7... Nc6 {[%clk 0:03:04.5]} 8. Qxb7 {[%clk 0:02:48.1]}
8... Nb4 {[%clk 0:03:04.8]} 9. Rc1 {[%clk 0:02:38.9]} 9... O-O {[%clk
0:02:42.1]} 10. Qxc7 {[%clk 0:02:22.4]} 10... Qxc7 {[%clk 0:02:30.9]} 11. Bxc7
{[%clk 0:02:23]} 11... Rfc8 {[%clk 0:02:23.2]} 12. Bg3 {[%clk 0:02:23.2]} 12...
Ne4 {[%clk 0:02:23.3]} 13. f3 {[%clk 0:02:05.3]} 13... Nxc3 {[%clk 0:02:21.8]}
14. Rxc3 {[%clk 0:02:04.5]} 14... Nxa2 {[%clk 0:02:19.7]} 15. Rxc8+ {[%clk
0:02:00.4]} 15... Rxc8 {[%clk 0:02:19.7]} 16. Be2 {[%clk 0:01:50]} 16... Rc1+
{[%clk 0:02:14.5]} 17. Kf2 {[%clk 0:01:51.1]} 17... Bb4 {[%clk 0:02:10.2]} 18.
e4 {[%clk 0:01:41.1]} 18... dxe4 {[%clk 0:02:03.5]} 19. Bf4 {[%clk 0:01:38.7]}
19... Rb1 {[%clk 0:01:36.9]} 20. g4 {[%clk 0:01:38.6]} 20... Bg6 {[%clk
0:01:33.5]} 21. h4 {[%clk 0:01:30.2]} 21... Rxb2 {[%clk 0:01:22.9]} 22. h5
{[%clk 0:01:29.6]} 22... exf3 {[%clk 0:01:24]} 23. hxg6 {[%clk 0:01:26.9]} 23...
fxe2 {[%clk 0:01:20.7]} 24. gxh7+ {[%clk 0:01:28]} 24... Kh8 {[%clk 0:01:20.9]}
25. Nxe2 {[%clk 0:01:23]} 25... Nc3 {[%clk 0:01:19.5]} 26. Kf3 {[%clk
0:01:15.6]} 26... Nxe2 {[%clk 0:01:16.5]} 27. Be5 {[%clk 0:01:15.8]} 27... f6
{[%clk 0:01:12.8]} 28. Bb8 {[%clk 0:00:59]} 28... Nxd4+ {[%clk 0:01:06.7]} 29.
Ke4 {[%clk 0:01:00]} 29... Nc6 {[%clk 0:01:06.5]} 30. Bc7 {[%clk 0:00:59.1]}
30... Ba5 {[%clk 0:00:51.7]} 31. Bd6 {[%clk 0:00:57.5]} 31... Rf2 {[%clk
0:00:44.2]} 32. Bf8 {[%clk 0:00:55]} 32... Re2+ {[%clk 0:00:36.6]} 33. Kd5
{[%clk 0:00:38.5]} 33... Re8 {[%clk 0:00:36.3]} 34. Bc5 {[%clk 0:00:27.5]} 34...
Ne5 {[%clk 0:00:34.8]} 35. g5 {[%clk 0:00:26.9]} 35... fxg5 {[%clk 0:00:27.4]}
36. Bxa7 {[%clk 0:00:28]} 36... Ng4 {[%clk 0:00:23.8]} 37. Bd4 {[%clk
0:00:27.3]} 37... Nf6+ {[%clk 0:00:21.5]} 38. Kc4 {[%clk 0:00:28.6]} 38... g4
{[%clk 0:00:20.3]} 39. Rh4 {[%clk 0:00:26.5]} 39... g3 {[%clk 0:00:20.4]} 40.
Rh3 {[%clk 0:00:24.5]} 40... Bc7 {[%clk 0:00:21.4]} 41. Kd3 {[%clk 0:00:22.8]}
41... Nxh7 {[%clk 0:00:22.4]} 42. Be3 {[%clk 0:00:21.1]} 42... Kg8 {[%clk
0:00:22.4]} 43. Rh4 {[%clk 0:00:20.9]} 43... Nf6 {[%clk 0:00:23.3]} 44. Bd4
{[%clk 0:00:21.2]} 44... Kf7 {[%clk 0:00:23.6]} 45. Rh1 {[%clk 0:00:20.8]} 45...
Rd8 {[%clk 0:00:24.6]} 46. Ke3 {[%clk 0:00:20.3]} 46... Rxd4 {[%clk 0:00:23.1]}
47. Kxd4 {[%clk 0:00:21.6]} 47... g2 {[%clk 0:00:24.5]} 48. Rc1 {[%clk
0:00:20.1]} 48... g1=Q+ {[%clk 0:00:24.9]} 49. Rxg1 {[%clk 0:00:20.3]} 49...
Bb6+ {[%clk 0:00:26.4]} 50. Ke5 {[%clk 0:00:21.9]} 50... Bxg1 {[%clk 0:00:27.5]}
0-1